bitfinex-derivatives/quotes_SOLF0:USTF0_20250320
["timestamp","ask_amount","ask_price","bid_price","bid_amount"]
[1742493085259,0.05843174,127.74,127.73,7.8327]
[1742493085761,0.05843174,127.74,127.73,20.35217907]
[1742493087359,0.05843174,127.74,127.73,7.8327]
[1742493090163,12.57791081,127.74,127.72,7.8332]
[1742493090462,12.51947907,127.73,127.72,7.8332]
[1742493091065,0.05843174,127.74,127.71,12.57048539]
[1742493091369,0.05843174,127.74,127.72,12.51947907]
[1742493092461,0.05843174,127.74,127.73,7.8327]
[1742493092662,0.05843174,127.74,127.73,20.35217907]
[1742493093963,0.05843174,127.74,127.73,7.8327]
[1742493103574,7.89053174,127.74,127.72,7.833]
[1742493104077,36.43053174,127.74,127.72,7.833]
[1742493104870,36.43053174,127.74,127.71,7.88460632]
[1742493105173,36.43053174,127.74,127.71,0.05100632]
[1742493105573,36.43053174,127.74,127.72,7.8333]
[1742493106581,7.8329,127.73,127.71,7.88460632]
[1742493107176,48.95041081,127.74,127.72,7.8333]
[1742493107481,28.59843174,127.74,127.71,0.05100632]
[1742493108179,28.59843174,127.74,127.72,12.51947907]
[1742493108678,0.05843174,127.74,127.72,12.51947907]
[1742493108871,0.05843174,127.74,127.73,7.8327]
[1742493116494,3.174e-05,127.74,127.73,20.35217907]
[1742493118187,3.174e-05,127.74,127.73,7.8327]
[1742493122902,3.174e-05,127.74,127.71,0.05100632]
[1742493123096,28.54003174,127.74,127.7,12.51947907]
[1742493123298,28.54003174,127.74,127.73,12.51947907]
[1742493123596,3.174e-05,127.74,127.73,20.35217907]
[1742493129409,41.05947907,127.81,127.77,7.8302]
[1742493129607,36.3681,127.81,127.77,20.34967907]
[1742493130409,7.88166878,127.8,127.78,0.05234453]
[1742493132100,0.05306878,127.8,127.78,7.88194453]
[1742493132307,0.05306878,127.8,127.78,0.05234453]
[1742493132915,7.88186878,127.8,127.78,0.05234453]
[1742493133213,0.05306878,127.8,127.78,0.05234453]
[1742493134313,7.88156878,127.8,127.78,7.88174453]
[1742493134513,0.05306878,127.8,127.78,0.05234453]
[1742493134906,7.88176878,127.8,127.78,0.05234453]
[1742493135411,7.88196878,127.8,127.78,0.05234453]
[1742493135614,7.88196878,127.8,127.78,7.88204453]
[1742493135915,0.05306878,127.8,127.78,7.88204453]
[1742493137315,12.57254785,127.8,127.78,7.88204453]
[1742493137515,12.51947907,127.79,127.78,0.05234453]
[1742493138014,20.34847907,127.79,127.78,0.05234453]
[1742493138809,12.51947907,127.79,127.72,41.03947907]
[1742493139011,12.51947907,127.76,127.72,41.03947907]
[1742493139206,12.51947907,127.76,127.74,7.8316]
[1742493140009,12.51947907,127.75,127.74,0.0581197]
[1742493140816,12.51947907,127.75,127.74,7.8902197]
[1742493141012,0.05928114,127.76,127.74,0.0581197]
[1742493141312,0.05928114,127.76,127.74,12.57759877]
[1742493141518,0.05928114,127.76,127.75,7.8315]
[1742493142314,12.57876021,127.76,127.75,7.8315]
[1742493142618,12.57876021,127.76,127.74,7.8899197]
[1742493142822,0.05928114,127.76,127.74,0.0581197]
[1742493143025,0.05928114,127.76,127.75,7.8315]
[1742493145322,0.05928114,127.76,127.74,7.8907197]
[1742493145509,0.05928114,127.76,127.74,0.0581197]
[1742493145914,0.05928114,127.76,127.75,7.8323]
[1742493146617,0.05928114,127.76,127.74,0.0581197]
[1742493147222,0.05928114,127.76,127.75,7.8323]
[1742493151329,8.114e-05,127.76,127.75,7.8323]
[1742493151826,8.114e-05,127.76,127.75,20.35177907]
[1742493153028,8.114e-05,127.76,127.75,48.87177907]
[1742493155129,8.114e-05,127.76,127.75,7.8323]
[1742493156629,8.114e-05,127.76,127.74,7.8906197]
[1742493157726,7.83178114,127.76,127.74,0.0581197]
[1742493157919,20.35126021,127.76,127.74,0.0581197]
[1742493158324,20.35177907,127.75,127.74,0.0581197]
[1742493159629,12.51947907,127.75,127.74,0.0581197]
[1742493161035,20.35177907,127.75,127.74,0.0581197]
[1742493174335,7.8341,127.73,127.7,266.2951]
[1742493174534,12.51947907,127.72,127.7,266.2951]
[1742493175040,12.51947907,127.72,127.71,7.8347]
[1742493175741,20.35357907,127.72,127.7,266.35239555]
[1742493176539,12.51947907,127.72,127.71,7.8347]
[1742493176740,12.51947907,127.72,127.7,258.51729555]
[1742493177235,20.35417907,127.71,127.7,258.51729555]
[1742493178138,20.35417907,127.71,127.7,0.05729555]
[1742493179541,48.87417907,127.71,127.7,0.05729555]
[1742493180637,7.8368,127.68,127.65,258.48]
[1742493180837,12.51947907,127.67,127.65,258.48]
[1742493181044,12.51947907,127.67,127.65,266.318]
[1742493181847,12.51947907,127.66,127.65,266.37103384]
[1742493184645,12.51947907,127.66,127.65,0.05303384]
[1742493185445,12.51947907,127.66,127.65,7.89143384]
[1742493199261,12.51947907,127.66,127.65,0.05303384]
[1742493200059,12.51947907,127.66,127.65,7.89143384]
[1742493200850,0.05312328,127.67,127.66,7.8378]
[1742493200851,12.57260235,127.67,127.66,7.8378]
[1742493201057,0.05312328,127.67,127.66,7.8378]
[1742493202858,12.57260235,127.67,127.65,0.05303384]
[1742493203059,12.51947907,127.66,127.65,0.05303384]
[1742493203254,12.51947907,127.66,127.65,7.89143384]
[1742493203561,12.51947907,127.66,127.65,0.05303384]
[1742493204466,20.35727907,127.66,127.65,0.05303384]
[1742493204963,12.51947907,127.66,127.65,0.05303384]
[1742493205164,20.35727907,127.66,127.65,0.05303384]
[1742493211572,12.51947907,127.66,127.65,7.89143384]
[1742493213872,12.57260235,127.67,127.66,7.8378]
[1742493215277,20.40980235,127.67,127.65,7.89113384]
[1742493215478,12.51947907,127.66,127.65,7.89113384]
[1742493219575,0.05312328,127.67,127.66,7.8378]
[1742493221082,12.51947907,127.7,127.65,12.57251291]
[1742493221276,41.03947907,127.7,127.65,12.57251291]
[1742493221481,41.03947907,127.7,127.65,12.51947907]
[1742493221984,41.03947907,127.7,127.69,7.836]
[1742493223684,12.51947907,127.7,127.69,7.836]
[1742493225483,20.35477907,127.7,127.68,7.8363]
[1742493225686,12.51947907,127.69,127.68,7.8363]
[1742493233486,41.01947907,127.7,127.69,7.836]
[1742493234181,48.85477907,127.7,127.69,7.836]
[1742493234388,48.85477907,127.7,127.68,7.8363]
[1742493234581,12.51947907,127.69,127.68,7.8363]
[1742493234887,12.51947907,127.69,127.66,0.04961421]
[1742493235089,12.51947907,127.67,127.66,0.04961421]
[1742493236690,12.51947907,127.67,127.66,7.88721421]
[1742493238285,20.35667907,127.67,127.66,0.04961421]
[1742493238685,48.85667907,127.67,127.66,0.04961421]
[1742493248890,7.8393,127.64,127.6,258.58]
[1742493249085,12.51947907,127.62,127.6,258.58]
[1742493250091,12.57326331,127.62,127.61,7.8404]
[1742493250390,12.57326331,127.62,127.6,258.63671155]
[1742493250594,12.57326331,127.62,127.6,266.47771155]
[1742493250893,12.57326331,127.62,127.6,258.63671155]
[1742493251886,12.57326331,127.62,127.61,7.8409]
[1742493252087,12.57326331,127.62,127.6,258.63671155]
[1742493252487,12.57326331,127.62,127.61,7.8409]
[1742493254695,0.05378424,127.62,127.61,7.8409]
[1742493259100,0.05378424,127.62,127.6,266.47791155]
[1742493259101,41.07326331,127.62,127.6,266.47791155]
[1742493259801,41.07326331,127.62,127.61,7.8409]
[1742493263607,48.91356331,127.62,127.6,258.63671155]
[1742493263904,12.51947907,127.61,127.6,0.05671155]
[1742493264095,12.51947907,127.61,127.57,7.843]
[1742493264301,12.51947907,127.58,127.57,7.843]
[1742493264501,41.01947907,127.59,127.57,7.843]
[1742493265207,48.86197907,127.59,127.56,7.8436]
[1742493265398,41.07037983,127.59,127.57,0.05501036]
[1742493265606,12.51947907,127.58,127.57,0.05501036]
[1742493265998,20.36217907,127.58,127.57,0.05501036]
[1742493266606,12.51947907,127.58,127.57,0.05501036]
[1742493268805,12.51947907,127.58,127.57,7.89831036]
[1742493269408,41.07037983,127.59,127.58,7.8427]
[1742493269606,28.55090076,127.59,127.58,7.8427]
[1742493270213,0.05090076,127.59,127.58,7.8427]
[1742493272214,12.57037983,127.59,127.58,7.8427]
[1742493272513,20.41287983,127.59,127.57,0.05501036]
[1742493272716,41.01947907,127.58,127.57,0.05501036]
[1742493272905,48.86217907,127.58,127.57,0.05501036]
[1742493273107,41.01947907,127.58,127.57,0.05501036]
[1742493273409,28.5,127.58,127.57,0.05501036]
[1742493274410,48.86217907,127.58,127.57,0.05501036]
[1742493274611,28.5,127.58,127.57,0.05501036]
[1742493275010,0.05090076,127.59,127.57,0.05501036]
[1742493276519,0.05090076,127.59,127.58,7.8427]
[1742493277315,0.05090076,127.59,127.57,7.89801036]
[1742493277616,0.05090076,127.59,127.57,0.05501036]
[1742493277916,0.05090076,127.59,127.58,7.8427]
[1742493278113,0.05090076,127.59,127.57,0.05501036]
[1742493278719,0.05090076,127.59,127.57,7.89791036]
[1742493279214,0.05090076,127.59,127.57,0.05501036]
[1742493279418,0.05090076,127.59,127.58,7.8427]
[1742493279615,0.05090076,127.59,127.57,0.05501036]
[1742493279919,0.05090076,127.59,127.57,7.89811036]
[1742493280320,7.89310076,127.59,127.57,7.89811036]
[1742493280520,20.41257983,127.59,127.57,7.89811036]
[1742493286119,20.41257983,127.59,127.57,0.05501036]
[1742493287016,20.41257983,127.59,127.57,7.89831036]
[1742493288428,20.36217907,127.58,127.57,0.05501036]
[1742493289426,12.51947907,127.58,127.57,0.05501036]
[1742493290030,20.36217907,127.58,127.57,0.05501036]
[1742493292033,7.8448,127.55,127.53,7.8455]
[1742493292327,20.36427907,127.55,127.53,7.8455]
[1742493292726,20.36377907,127.56,127.53,7.8455]
[1742493293228,12.57815092,127.56,127.53,7.90103548]
[1742493293430,7.8449,127.55,127.53,7.90103548]
[1742493293626,12.51947907,127.55,127.53,7.90103548]
[1742493294024,12.51947907,127.55,127.53,0.05553548]
[1742493294730,12.51947907,127.55,127.53,7.90103548]
[1742493296534,12.51947907,127.55,127.54,7.8452]
[1742493297632,12.51947907,127.55,127.53,7.90093548]
[1742493297832,12.51947907,127.54,127.53,0.05553548]
[1742493298335,41.01947907,127.54,127.53,0.05553548]
[1742493299437,41.01947907,127.54,127.53,7.90133548]
[1742493299621,41.01947907,127.54,127.53,0.05553548]
[1742493299827,41.01947907,127.54,127.5,258.8]
[1742493300030,12.51947907,127.51,127.5,266.6476]
[1742493300232,12.51947907,127.52,127.5,258.8]
[1742493300534,12.51947907,127.51,127.5,266.6476]
[1742493301035,12.51947907,127.51,127.5,7.8476]
[1742493302328,12.57091041,127.52,127.49,0.04906405]
[1742493303024,0.05143134,127.52,127.49,0.04906405]
[1742493303436,0.05143134,127.52,127.51,7.847]
[1742493304826,3.134e-05,127.52,127.51,20.36647907]
[1742493305231,3.134e-05,127.52,127.5,7.8473]
[1742493305429,3.134e-05,127.52,127.5,12.51947907]
[1742493305633,3.134e-05,127.52,127.51,12.51947907]
[1742493305937,3.134e-05,127.52,127.51,20.36647907]
[1742493306134,3.134e-05,127.52,127.51,24.60267907]
[1742493306634,3.134e-05,127.52,127.51,53.10267907]
[1742493307533,3.50721293,127.6,127.51,53.10267907]
[1742493307534,12.51947907,127.61,127.57,7.8429]
[1742493307734,12.51947907,127.62,127.57,20.36237907]
[1742493308137,7.8412,127.61,127.57,20.36237907]
[1742493308635,20.36067907,127.61,127.57,20.36237907]
[1742493308838,0.05021058,127.6,127.58,0.05670722]
[1742493310234,0.05021058,127.6,127.58,7.89910722]
[1742493311041,12.56968965,127.6,127.58,0.05670722]
[1742493311333,7.8421,127.59,127.58,0.05670722]
[1742493311540,20.36157907,127.59,127.58,0.05670722]
[1742493311838,41.01947907,127.59,127.54,7.8449]
[1742493312036,20.36317907,127.57,127.54,7.8449]
[1742493312833,20.36317907,127.57,127.54,7.88868817]
[1742493313039,20.4196568,127.57,127.54,7.88868817]
[1742493313239,7.844,127.56,127.54,7.88868817]
[1742493314146,12.51947907,127.56,127.54,0.04378817]
[1742493314737,7.8446,127.55,127.54,0.04378817]
[1742493315239,20.36407907,127.55,127.54,0.04378817]
[1742493315434,48.84407907,127.55,127.54,0.04378817]
[1742493315745,7.8464,127.52,127.51,258.88]
[1742493316039,12.51947907,127.53,127.51,258.88]
[1742493316245,12.51947907,127.54,127.51,258.88]
[1742493317042,12.569844,127.54,127.51,258.88]
[1742493317342,7.8461,127.53,127.51,258.88]
[1742493317542,20.36557907,127.53,127.51,258.88]
[1742493318539,20.36587907,127.52,127.51,258.88]
[1742493318740,40.99947907,127.52,127.48,2.1345]
[1742493318934,12.51947907,127.5,127.47,2.0584]
[1742493319338,20.36717907,127.5,127.48,7.8486]
[1742493319742,12.51947907,127.5,127.48,7.8486]
[1742493319935,12.51947907,127.5,127.49,7.8483]
[1742493320140,12.57902848,127.51,127.49,7.8483]
[1742493321344,12.57902848,127.51,127.5,7.8476]
[1742493321946,0.05954941,127.51,127.5,7.8476]
[1742493337453,0.05954941,127.51,127.47,14.57787907]
[1742493337454,12.57902848,127.51,127.49,7.8479]
[1742493338156,20.42622848,127.51,127.49,7.8479]
[1742493339054,0.05954941,127.51,127.47,2.0584]
[1742493339259,12.51947907,127.49,127.47,7.8491]
[1742493339456,12.51947907,127.49,127.46,260.9101]
[1742493339657,20.36807907,127.49,127.46,260.9101]
[1742493339855,12.51947907,127.49,127.46,260.9101]
[1742493340357,12.51947907,127.49,127.47,7.8495]
[1742493340759,20.36807907,127.49,127.47,7.8495]
[1742493341059,20.36807907,127.49,127.46,268.7599]
[1742493341758,20.36807907,127.49,127.47,7.8494]
[1742493342560,12.51947907,127.49,127.48,7.8489]
[1742493342761,12.51947907,127.5,127.46,260.9101]
[1742493343156,12.51947907,127.5,127.48,7.8484]
[1742493343353,41.05902848,127.51,127.46,260.9101]
[1742493343552,12.51947907,127.5,127.46,260.9101]
[1742493343848,48.90642848,127.51,127.46,273.42957907]
[1742493344059,48.90642848,127.51,127.44,28.48]
[1742493344060,28.53954941,127.51,127.43,2.0648]
[1742493344258,12.51947907,127.47,127.43,2.0648]
[1742493344459,28.53916749,127.48,127.44,12.51947907]
[1742493344760,28.48,127.48,127.44,12.51947907]
[1742493344958,0.05786774,127.47,127.46,7.8498]
[1742493346460,0.05786774,127.47,127.45,7.8504]
[1742493350862,0.05786774,127.47,127.43,2.0648]
[1742493350863,12.57734681,127.47,127.44,7.851]
[1742493351462,20.42724681,127.47,127.44,7.851]
[1742493353064,20.42724681,127.47,127.45,7.8507]
[1742493353565,0.05786774,127.47,127.43,2.0648]
[1742493353764,0.05786774,127.47,127.46,7.8501]
[1742493354365,0.05786774,127.47,127.45,7.8504]
[1742493355358,0.05786774,127.47,127.43,14.58427907]
[1742493355969,0.05786774,127.47,127.45,7.8502]
[1742493356566,0.05786774,127.47,127.46,7.8501]
[1742493362166,12.51947907,127.5,127.49,7.8483]
[1742493363163,12.51947907,127.5,127.48,7.8485]
[1742493363358,7.90301228,127.51,127.48,7.90636774]
[1742493363559,12.51947907,127.5,127.48,7.90636774]
[1742493364563,12.51947907,127.5,127.49,7.8483]
[1742493365273,0.05591228,127.51,127.5,7.8476]
[1742493371065,12.57539135,127.51,127.49,7.8479]
[1742493371273,12.57539135,127.51,127.48,0.05786774]
[1742493371673,0.05591228,127.51,127.5,7.8476]
[1742493372073,12.57539135,127.51,127.48,0.05786774]
[1742493372278,12.51947907,127.5,127.48,0.05786774]
[1742493372470,12.51947907,127.5,127.49,7.8482]
[1742493374079,12.51947907,127.5,127.48,7.90636774]
[1742493374480,12.51947907,127.5,127.48,0.05786774]
[1742493374671,12.57539135,127.51,127.49,7.8483]
[1742493374868,12.57539135,127.51,127.48,0.05786774]
[1742493375681,12.57539135,127.51,127.5,7.8476]
[1742493376179,0.05591228,127.51,127.5,7.8476]
[1742493378676,12.57539135,127.51,127.5,7.8476]
[1742493380884,0.05591228,127.51,127.5,7.8476]
[1742493381978,12.57539135,127.51,127.49,7.8481]
[1742493382175,12.51947907,127.5,127.49,7.8481]
[1742493382376,12.57539135,127.51,127.49,7.8481]
[1742493383486,20.42239135,127.51,127.49,7.8481]
[1742493384787,12.57539135,127.51,127.49,7.8481]
[1742493384985,12.57539135,127.51,127.5,7.8476]
[1742493387482,0.05591228,127.51,127.5,7.8476]
[1742493388491,7.848,127.5,127.48,0.05786774]
[1742493388683,12.51947907,127.49,127.48,0.05786774]
[1742493389181,12.51947907,127.49,127.48,7.90676774]
[1742493390287,12.51947907,127.49,127.48,0.05786774]
[1742493391192,12.51947907,127.49,127.47,7.8492]
[1742493391193,12.51947907,127.49,127.44,4.2268]
[1742493391495,12.51947907,127.49,127.44,16.74627907]
[1742493391688,12.51947907,127.49,127.47,7.8494]
[1742493391893,40.97947907,127.51,127.46,12.51947907]
[1742493392286,48.82687907,127.51,127.46,12.51947907]
[1742493392481,0.05993415,127.5,127.46,12.51947907]
[1742493392992,0.05993415,127.5,127.47,7.8489]
[1742493393896,0.05993415,127.5,127.47,12.51947907]
[1742493394393,0.05993415,127.5,127.48,7.8489]
[1742493395288,0.05993415,127.5,127.47,7.8492]
[1742493395688,7.90773415,127.5,127.47,7.8492]
[1742493395982,0.05993415,127.5,127.48,7.8488]
[1742493398982,0.05993415,127.5,127.49,7.8483]
[1742493402902,4.9089,127.54,127.48,14.66017907]
[1742493403093,4.9089,127.54,127.5,12.51947907]
[1742493403498,4.9089,127.54,127.52,7.8461]
[1742493404200,4.96486271,127.54,127.52,7.90171478]
[1742493406396,4.96486271,127.54,127.53,7.8458]
[1742493407899,5.88694359,127.6,127.56,7.8434]
[1742493408106,4.1396,127.61,127.53,40.97947907]
[1742493408107,12.51947907,127.58,127.53,40.97947907]
[1742493408305,7.8438,127.57,127.53,40.97947907]
[1742493408503,12.51947907,127.56,127.53,36.3055]
[1742493408702,12.51947907,127.55,127.53,7.8455]
[1742493408899,12.51947907,127.55,127.52,260.9619]
[1742493409099,12.51947907,127.53,127.49,1.9764]
[1742493409305,12.51947907,127.52,127.49,1.9764]
[1742493409602,12.51947907,127.54,127.52,7.8464]
[1742493409806,0.05713312,127.54,127.5,12.51947907]
[1742493410007,0.05713312,127.54,127.52,12.57141744]
[1742493410200,0.05713312,127.54,127.53,7.8458]
[1742493412809,28.62,127.59,127.53,271.41947907]
[1742493413009,28.62,127.59,127.54,12.51947907]
[1742493413010,12.51947907,127.58,127.54,12.51947907]
[1742493413206,41.13947907,127.59,127.54,12.51947907]
[1742493413408,12.51947907,127.59,127.54,12.51947907]
[1742493413803,12.51947907,127.59,127.54,41.11947907]
[1742493414002,0.05962181,127.58,127.56,7.8436]
[1742493414712,0.05962181,127.58,127.57,7.8433]
[1742493416212,12.51947907,127.63,127.61,7.8405]
[1742493416418,41.09947907,127.64,127.59,12.51947907]
[1742493416620,12.51947907,127.62,127.57,41.09947907]
[1742493416814,12.51947907,127.6,127.55,45.11877907]
[1742493417215,12.51947907,127.59,127.57,7.843]
[1742493417413,12.57306607,127.59,127.56,0.05337102]
[1742493418215,12.57306607,127.59,127.57,7.8433]
[1742493418412,12.57306607,127.59,127.56,0.05337102]
[1742493418922,12.57306607,127.59,127.56,7.89697102]
[1742493419128,12.51947907,127.58,127.56,0.05337102]
[1742493419623,20.36227907,127.58,127.56,0.05337102]
[1742493419817,12.51947907,127.58,127.56,0.05337102]
[1742493420216,12.51947907,127.57,127.49,2.1015]
[1742493420423,12.51947907,127.53,127.5,1.9999]
[1742493420728,28.62,127.58,127.48,258.84]
[1742493420729,12.51947907,127.51,127.48,258.84]
[1742493421225,12.51947907,127.52,127.48,258.84]
[1742493421527,0.05506495,127.51,127.48,258.89605436]
[1742493421824,0.05506495,127.51,127.5,7.8473]
[1742493422227,41.17947907,127.55,127.5,41.17947907]
[1742493422727,12.51947907,127.54,127.5,28.66]
[1742493423129,12.51947907,127.54,127.51,7.8467]
[1742493423427,12.569399,127.54,127.51,7.90571433]
[1742493424331,20.414599,127.54,127.51,7.90571433]
[1742493424726,12.569399,127.54,127.51,0.05901433]
[1742493425129,7.8458,127.53,127.51,0.05901433]
[1742493425728,12.569399,127.54,127.51,7.90601433]
[1742493425931,0.04991993,127.54,127.51,0.05901433]
[1742493426431,0.04991993,127.54,127.52,7.8461]
[1742493427130,0.04991993,127.54,127.53,7.8458]
[1742493428032,0.04991993,127.54,127.53,20.36527907]
[1742493428620,0.04991993,127.54,127.53,7.8458]
[1742493429431,12.569399,127.54,127.51,2.22841433]
[1742493429831,20.414899,127.54,127.51,10.07531433]
[1742493430334,12.51947907,127.53,127.51,0.05901433]
[1742493430723,20.36577907,127.53,127.51,0.05901433]
[1742493430923,41.229399,127.54,127.51,0.05901433]
[1742493431126,49.074899,127.54,127.51,7.90601433]
[1742493431340,41.229399,127.54,127.51,0.05901433]
[1742493432136,7.8461,127.53,127.51,0.05901433]
[1742493432334,20.36557907,127.53,127.51,0.05901433]
[1742493433124,20.36587907,127.52,127.51,0.05901433]
[1742493434829,12.51947907,127.52,127.51,0.05901433]
[1742493435830,20.36587907,127.52,127.51,0.05901433]
[1742493437231,12.51947907,127.52,127.51,0.05901433]
[1742493437532,20.36587907,127.52,127.51,0.05901433]
[1742493440446,12.51947907,127.52,127.51,0.05901433]
[1742493440740,28.70991993,127.54,127.51,0.05901433]
[1742493441146,28.70991993,127.54,127.53,7.8458]
[1742493441941,0.04991993,127.54,127.53,7.8458]
[1742493442740,0.04991993,127.54,127.53,20.36527907]
[1742493442947,28.64,127.58,127.57,7.8433]
[1742493443239,12.51947907,127.6,127.55,12.51947907]
[1742493443445,41.15947907,127.6,127.55,12.51947907]
[1742493443743,28.64,127.6,127.57,12.51947907]
[1742493444038,28.69173827,127.6,127.59,7.8421]
[1742493444444,28.69173827,127.6,127.57,0.05170161]
[1742493444638,28.69173827,127.6,127.58,7.8424]
[1742493444840,28.69173827,127.6,127.57,0.05170161]
[1742493445443,28.69173827,127.6,127.58,7.8425]
[1742493445643,28.69173827,127.6,127.57,0.05170161]
[1742493445942,28.69173827,127.6,127.57,12.57118068]
[1742493447038,0.05173827,127.6,127.59,20.36157907]
[1742493447447,41.15947907,127.64,127.59,12.51947907]
[1742493447643,48.99857907,127.64,127.61,7.8404]
[1742493448542,20.40903181,127.64,127.61,7.89574599]
[1742493448748,7.8399,127.63,127.61,0.05534599]
[1742493449245,20.35977907,127.62,127.61,0.05534599]
[1742493449450,7.8403,127.62,127.61,0.05534599]
[1742493449750,56.21562356,127.62,127.61,0.05534599]
[1742493450140,7.842,127.6,127.55,30.8292]
[1742493450952,7.842,127.6,127.57,7.8432]
[1742493451252,0.05701584,127.6,127.57,0.0571957]
[1742493452253,7.89861584,127.6,127.57,0.0571957]
[1742493452556,0.05701584,127.6,127.57,0.0571957]
[1742493452754,0.05701584,127.6,127.58,7.8427]
[1742493453551,0.05701584,127.6,127.57,0.0571957]
[1742493456755,21.73402356,127.66,127.58,48.33532356]
[1742493457055,36.4589,127.65,127.58,50.45682356]
[1742493457252,2.0187,127.66,127.58,50.45682356]
[1742493457459,28.62,127.65,127.63,7.8392]
[1742493457964,28.67344606,127.65,127.63,7.89681664]
[1742493458452,36.51184606,127.65,127.63,0.05761664]
[1742493459457,0.05344606,127.65,127.63,7.89711664]
[1742493459658,28.65344606,127.65,127.63,7.89711664]
[1742493460860,0.05344606,127.65,127.64,7.839]
[1742493461159,0.05344606,127.65,127.63,0.05761664]
[1742493461360,0.05344606,127.65,127.63,7.89681664]
[1742493462261,0.05344606,127.65,127.64,7.839]
[1742493470264,4.606e-05,127.65,127.64,56.05432356]
[1742493470961,4.606e-05,127.65,127.64,58.16912356]
[1742493471265,4.606e-05,127.65,127.64,51.05411688]
[1742493473056,4.606e-05,127.65,127.64,58.14336033]
[1742493473763,4.606e-05,127.65,127.64,38.4538]
[1742493474666,4.606e-05,127.65,127.64,7.839]
[1742493477479,4.606e-05,127.65,127.64,27.52856033]
[1742493482774,19.68956033,127.73,127.69,7.8354]
[1742493483079,36.2746,127.72,127.69,7.8354]
[1742493483276,36.2746,127.72,127.66,287.06]
[1742493483467,28.44,127.72,127.7,7.8351]
[1742493483777,28.44,127.72,127.66,306.74956033]
[1742493483973,28.48984163,127.72,127.7,0.05291824]
[1742493484167,28.48984163,127.72,127.71,7.8347]
[1742493484376,0.04984163,127.72,127.71,7.8347]
[1742493486179,28.44,127.76,127.7,19.74247857]
[1742493486374,28.44,127.77,127.7,19.68956033]
[1742493486575,3.9942,127.79,127.75,7.8318]
[1742493486778,28.44,127.79,127.74,19.68956033]
[1742493486980,36.2696,127.8,127.74,19.68956033]
[1742493487179,28.44,127.8,127.74,19.68956033]
[1742493487383,0.05491594,127.78,127.76,0.05822904]
[1742493488280,28.44,127.83,127.76,28.49822904]
[1742493488477,28.44,127.83,127.76,48.18778937]
[1742493489079,7.8284,127.82,127.78,7.8301]
[1742493489478,0.05039943,127.81,127.79,0.05937428]
[1742493489884,0.05039943,127.81,127.79,7.88917428]
[1742493490480,0.05039943,127.81,127.8,7.8292]
[1742493492180,0.05039943,127.81,127.79,7.88897428]
[1742493492382,0.05039943,127.81,127.79,0.05937428]
[1742493492782,0.05039943,127.81,127.79,7.88887428]
[1742493492984,0.05039943,127.81,127.79,0.05937428]
[1742493493385,0.05039943,127.81,127.8,7.8292]
[1742493494982,7.8269,127.84,127.81,7.8281]
[1742493495287,28.42,127.85,127.79,286.88]
[1742493495787,28.42,127.85,127.79,258.46]
[1742493495983,32.5615,127.85,127.79,258.46]
[1742493496189,7.8283,127.82,127.81,0.05629701]
[1742493496389,36.2283,127.82,127.81,0.05629701]
[1742493497384,36.2283,127.82,127.76,19.68956033]
[1742493497385,48.08956033,127.82,127.74,284.45316033]
[1742493497587,48.08956033,127.82,127.74,264.7636]
[1742493497891,32.5415,127.85,127.8,7.8289]
[1742493498393,40.368,127.85,127.8,7.8289]
[1742493498686,0.05020275,127.84,127.81,0.0539588]
[1742493498989,0.05020275,127.84,127.81,7.8825588]
[1742493499285,0.05020275,127.84,127.82,7.8279]
[1742493500188,0.05020275,127.84,127.83,7.8274]
[1742493500781,0.05020275,127.84,127.82,7.8278]
[1742493501186,0.05020275,127.84,127.81,0.0539588]
[1742493501593,0.05020275,127.84,127.82,7.828]
[1742493501793,0.05020275,127.84,127.81,0.0539588]
[1742493502093,0.05020275,127.84,127.83,7.8274]
[1742493502294,0.05020275,127.84,127.81,0.0539588]
[1742493503395,0.05020275,127.84,127.82,7.8276]
[1742493504191,0.05020275,127.84,127.83,7.8274]
[1742493504394,0.05020275,127.84,127.81,0.0539588]
[1742493504897,19.73976308,127.84,127.81,0.0539588]
[1742493505303,7.8277,127.83,127.81,7.8825588]
[1742493505602,28.45020275,127.84,127.81,0.0539588]
[1742493505804,28.45020275,127.84,127.82,7.8277]
[1742493507301,7.8274,127.83,127.81,0.0539588]
[1742493507493,28.45020275,127.84,127.81,0.0539588]
[1742493507898,7.828,127.82,127.81,0.0539588]
[1742493509006,7.8277,127.83,127.81,7.8824588]
[1742493510602,28.45020275,127.84,127.81,0.0539588]
[1742493511108,48.13976308,127.84,127.81,0.0539588]
[1742493511807,7.8274,127.83,127.81,0.0539588]
[1742493512407,7.828,127.82,127.81,0.0539588]
[1742493513104,20.40530078,127.83,127.81,0.0539588]
[1742493513509,7.8277,127.83,127.81,7.8824588]